[Event "*** Titled Tuesday Blitz"]
[Site "Chess.com"]
[Date "2021.03.09"]
[Round "1"]
[White "IsaacWiebe"]
[Black "Sashadav97"]
[Result "0-1"]
[WhiteElo "2288"]
[BlackElo "2590"]
[TimeControl "180+1"]
[EndTime "10:01:19 PST"]
[Termination "Sashadav97 won by resignation"]

1. d4 {[%clk 0:03:00.5]} 1... Nf6 {[%clk 0:02:59.7]} 2. c4 {[%clk 0:03:00.8]}
2... g6 {[%clk 0:03:00.3]} 3. Nc3 {[%clk 0:03:00.5]} 3... Bg7 {[%clk 0:03:00.8]}
4. Nf3 {[%clk 0:03:00.2]} 4... O-O {[%clk 0:03:00.3]} 5. e4 {[%clk 0:02:57.3]}
5... d6 {[%clk 0:03:00.5]} 6. Be2 {[%clk 0:02:57.1]} 6... e5 {[%clk 0:03:01]} 7.
h3 {[%clk 0:02:56.4]} 7... exd4 {[%clk 0:02:52.6]} 8. Nxd4 {[%clk 0:02:56.3]}
8... Re8 {[%clk 0:02:53.2]} 9. Qc2 {[%clk 0:02:56.2]} 9... Nxe4 {[%clk
0:02:47.1]} 10. Nxe4 {[%clk 0:02:56.3]} 10... Bxd4 {[%clk 0:02:47.5]} 11. O-O
{[%clk 0:02:56.4]} 11... Bf5 {[%clk 0:02:43.9]} 12. Bd3 {[%clk 0:02:54.6]} 12...
Bxe4 {[%clk 0:02:43.5]} 13. Bxe4 {[%clk 0:02:54.7]} 13... Nc6 {[%clk 0:02:44]}
14. Bxc6 {[%clk 0:02:54.5]} 14... bxc6 {[%clk 0:02:43.9]} 15. Bd2 {[%clk
0:02:54.3]} 15... Qf6 {[%clk 0:02:41.4]} 16. Rab1 {[%clk 0:02:52.5]} 16... Re2
{[%clk 0:02:39.4]} 0-1

[Event "*** Titled Tuesday Blitz"]
[Site "Chess.com"]
[Date "2021.03.09"]
[Round "1"]
[White "TeukkaSalama"]
[Black "Margency"]
[Result "0-1"]
[WhiteElo "2374"]
[BlackElo "2695"]
[TimeControl "180+1"]
[EndTime "10:01:26 PST"]
[Termination "Margency won by resignation"]

1. d4 {[%clk 0:03:00.9]} 1... Nf6 {[%clk 0:02:59.6]} 2. Nf3 {[%clk 0:03:00.8]}
2... g6 {[%clk 0:03:00]} 3. Bg5 {[%clk 0:03:01.1]} 3... Bg7 {[%clk 0:03:00.5]}
4. Nbd2 {[%clk 0:03:01.7]} 4... O-O {[%clk 0:02:59.9]} 5. c3 {[%clk 0:03:02.2]}
5... d6 {[%clk 0:02:59.1]} 6. e4 {[%clk 0:03:02.7]} 6... h6 {[%clk 0:02:57.7]}
7. Bh4 {[%clk 0:03:01.8]} 7... c5 {[%clk 0:02:57.8]} 8. dxc5 {[%clk 0:03:01.7]}
8... dxc5 {[%clk 0:02:57.9]} 9. Bc4 {[%clk 0:03:02.3]} 9... Nc6 {[%clk
0:02:56.9]} 10. Qe2 {[%clk 0:03:02.2]} 10... Na5 {[%clk 0:02:53.4]} 11. Bd3
{[%clk 0:02:57.6]} 11... Nh5 {[%clk 0:02:49.7]} 12. Rd1 {[%clk 0:02:49.6]} 12...
Nf4 {[%clk 0:02:47.8]} 13. Bxe7 {[%clk 0:02:34.6]} 13... Qxe7 {[%clk 0:02:42.3]}
14. Qe3 {[%clk 0:02:34.5]} 14... Nxg2+ {[%clk 0:02:42]} 0-1

[Event "*** Titled Tuesday Blitz"]
[Site "Chess.com"]
[Date "2021.03.09"]
[Round "1"]
[White "Hongjin"]
[Black "jefferyx"]
[Result "0-1"]
[WhiteElo "2481"]
[BlackElo "3015"]
[TimeControl "180+1"]
[EndTime "10:01:55 PST"]
[Termination "jefferyx won by resignation"]

1. c4 {[%clk 0:02:58.6]} 1... g6 {[%clk 0:02:59.5]} 2. d4 {[%clk 0:02:56.7]}
2... Bg7 {[%clk 0:02:59.7]} 3. e4 {[%clk 0:02:57.1]} 3... d6 {[%clk 0:03:00]} 4.
Nc3 {[%clk 0:02:56.3]} 4... Nc6 {[%clk 0:02:59.7]} 5. Nf3 {[%clk 0:02:54.4]}
5... Bg4 {[%clk 0:02:59.5]} 6. d5 {[%clk 0:02:51.7]} 6... Nd4 {[%clk 0:02:59.9]}
7. Be2 {[%clk 0:02:51.4]} 7... Bxf3 {[%clk 0:02:59.9]} 8. Bxf3 {[%clk
0:02:51.8]} 8... c5 {[%clk 0:02:57.9]} 9. O-O {[%clk 0:02:46]} 9... Nf6 {[%clk
0:02:58.2]} 10. Be3 {[%clk 0:02:45.2]} 10... Nd7 {[%clk 0:02:58.6]} 11. Rc1
{[%clk 0:02:34.7]} 11... O-O {[%clk 0:02:58.4]} 12. b3 {[%clk 0:02:32.8]} 12...
a6 {[%clk 0:02:58.6]} 13. Be2 {[%clk 0:02:30.6]} 13... Qa5 {[%clk 0:02:57.9]}
14. Bxd4 {[%clk 0:02:22.1]} 14... cxd4 {[%clk 0:02:56.4]} 15. Na4 {[%clk
0:02:16.1]} 15... b5 {[%clk 0:02:55.7]} 16. cxb5 {[%clk 0:02:16.6]} 16... axb5
{[%clk 0:02:56.6]} 17. Nb2 {[%clk 0:02:15.2]} 17... Qxa2 {[%clk 0:02:56.7]} 18.
Bxb5 {[%clk 0:02:14.3]} 18... Nc5 {[%clk 0:02:53.2]} 19. Nd3 {[%clk 0:02:11.4]}
19... Nxe4 {[%clk 0:02:51.3]} 20. Nb4 {[%clk 0:02:09.8]} 20... Qa5 {[%clk
0:02:50.6]} 21. Nc6 {[%clk 0:02:09.7]} 21... Qxb5 {[%clk 0:02:50.2]} 22. Nxe7+
{[%clk 0:02:10.3]} 22... Kh8 {[%clk 0:02:50.4]} 0-1

[Event "*** Titled Tuesday Blitz"]
[Site "Chess.com"]
[Date "2021.03.09"]
[Round "1"]
[White "TigrVShlyape"]
[Black "ljuks68"]
[Result "1-0"]
[WhiteElo "2826"]
[BlackElo "2437"]
[TimeControl "180+1"]
[EndTime "10:03:18 PST"]
[Termination "TigrVShlyape won by resignation"]

1. d4 {[%clk 0:03:00.8]} 1... d5 {[%clk 0:01:51.8]} 2. Nf3 {[%clk 0:02:57.8]}
2... Nf6 {[%clk 0:01:51]} 3. Bf4 {[%clk 0:02:57.1]} 3... c5 {[%clk 0:01:50.9]}
4. e3 {[%clk 0:02:57.2]} 4... Nc6 {[%clk 0:01:51.4]} 5. Nbd2 {[%clk 0:02:57.3]}
5... Bf5 {[%clk 0:01:50.6]} 6. dxc5 {[%clk 0:02:56.1]} 6... e6 {[%clk
0:01:50.1]} 7. Nd4 {[%clk 0:02:55.1]} 7... Bg6 {[%clk 0:01:46.8]} 8. Bb5 {[%clk
0:02:54.4]} 8... Rc8 {[%clk 0:01:45.6]} 9. b4 {[%clk 0:02:54.2]} 9... Ne4 {[%clk
0:01:39.1]} 10. Nxe4 {[%clk 0:02:50.6]} 10... Bxe4 {[%clk 0:01:37.5]} 11. O-O
{[%clk 0:02:49.4]} 11... Be7 {[%clk 0:01:35.4]} 12. Nxc6 {[%clk 0:02:46.8]}
12... bxc6 {[%clk 0:01:35.2]} 13. Ba6 {[%clk 0:02:47.1]} 13... O-O {[%clk
0:01:35.3]} 14. Bxc8 {[%clk 0:02:44.9]} 14... Qxc8 {[%clk 0:01:35.2]} 15. Bd6
{[%clk 0:02:44.9]} 15... Bxd6 {[%clk 0:01:33.8]} 16. cxd6 {[%clk 0:02:44.7]}
16... Qd7 {[%clk 0:01:33.6]} 17. Qd2 {[%clk 0:02:39.1]} 17... Qxd6 {[%clk
0:01:33.5]} 18. c4 {[%clk 0:02:38.2]} 18... Bg6 {[%clk 0:01:32.2]} 19. cxd5
{[%clk 0:02:36.9]} 19... cxd5 {[%clk 0:01:31.8]} 20. Rac1 {[%clk 0:02:33.4]}
20... e5 {[%clk 0:01:30.6]} 21. Rfd1 {[%clk 0:02:32.1]} 21... Rd8 {[%clk
0:01:15.6]} 22. Qxd5 {[%clk 0:02:29.9]} 1-0

[Event "*** Titled Tuesday Blitz"]
[Site "Chess.com"]
[Date "2021.03.09"]
[Round "1"]
[White "ZiggyStardust64"]
[Black "ikhasu"]
[Result "0-1"]
[WhiteElo "2649"]
[BlackElo "2376"]
[TimeControl "180+1"]
[EndTime "10:03:25 PST"]
[Termination "ikhasu won by resignation"]

1. e4 {[%clk 0:03:00.9]} 1... e5 {[%clk 0:02:59.1]} 2. Nf3 {[%clk 0:03:00.8]}
2... Nf6 {[%clk 0:02:59.1]} 3. d4 {[%clk 0:02:58.6]} 3... Nxe4 {[%clk
0:02:57.9]} 4. Bd3 {[%clk 0:02:59]} 4... d5 {[%clk 0:02:57.6]} 5. Nxe5 {[%clk
0:02:59.5]} 5... Nd7 {[%clk 0:02:53.6]} 6. O-O {[%clk 0:03:00.1]} 6... Nxe5
{[%clk 0:02:53.3]} 7. dxe5 {[%clk 0:03:01]} 7... Be6 {[%clk 0:02:51.8]} 8. Bxe4
{[%clk 0:02:40.7]} 8... dxe4 {[%clk 0:02:51.4]} 9. Qe2 {[%clk 0:02:41.2]} 9...
Qd5 {[%clk 0:02:43.5]} 10. Bf4 {[%clk 0:02:41.3]} 10... Bb4 {[%clk 0:02:29.2]}
11. a3 {[%clk 0:02:34]} 11... Ba5 {[%clk 0:02:27.7]} 12. b4 {[%clk 0:02:33.6]}
12... Bb6 {[%clk 0:02:27.7]} 13. Nc3 {[%clk 0:02:26.1]} 13... Qd4 {[%clk
0:02:26.7]} 14. Nxe4 {[%clk 0:02:11.1]} 14... Bc4 {[%clk 0:02:26.2]} 15. Nd6+
{[%clk 0:01:01.9]} 15... cxd6 {[%clk 0:02:23.4]} 16. exd6+ {[%clk 0:01:02]}
16... Bxe2 {[%clk 0:02:23]} 0-1

[Event "*** Titled Tuesday Blitz"]
[Site "Chess.com"]
[Date "2021.03.09"]
[Round "1"]
[White "ErikBlomqvist"]
[Black "szefru"]
[Result "1-0"]
[WhiteElo "2553"]
[BlackElo "2244"]
[TimeControl "180+1"]
[EndTime "10:03:30 PST"]
[Termination "ErikBlomqvist won by resignation"]

1. e4 {[%clk 0:02:59.8]} 1... Nc6 {[%clk 0:02:58.5]} 2. Nf3 {[%clk 0:02:58.6]}
2... g6 {[%clk 0:02:58.4]} 3. d4 {[%clk 0:02:58.4]} 3... Bg7 {[%clk 0:02:58.3]}
4. c3 {[%clk 0:02:49.6]} 4... d5 {[%clk 0:02:58.2]} 5. e5 {[%clk 0:02:48.3]}
5... Bg4 {[%clk 0:02:55.4]} 6. Nbd2 {[%clk 0:02:47]} 6... e6 {[%clk 0:02:54]} 7.
h3 {[%clk 0:02:46.7]} 7... Bxf3 {[%clk 0:02:53.7]} 8. Nxf3 {[%clk 0:02:47.6]}
8... Nge7 {[%clk 0:02:54.1]} 9. Bf4 {[%clk 0:02:41.1]} 9... h5 {[%clk
0:02:51.9]} 10. Qd2 {[%clk 0:02:37]} 10... Nf5 {[%clk 0:02:43.1]} 11. Bd3 {[%clk
0:02:32.8]} 11... Nce7 {[%clk 0:02:27.1]} 12. Bg5 {[%clk 0:02:29.9]} 12... Qd7
{[%clk 0:02:23.2]} 13. O-O {[%clk 0:02:19.2]} 13... a6 {[%clk 0:02:17.1]} 14. b4
{[%clk 0:02:15.3]} 14... O-O {[%clk 0:02:11.1]} 15. g4 {[%clk 0:02:11.9]} 15...
hxg4 {[%clk 0:02:10]} 16. hxg4 {[%clk 0:02:12.8]} 16... f6 {[%clk 0:01:56.6]}
17. exf6 {[%clk 0:02:09.9]} 17... Bxf6 {[%clk 0:01:52.1]} 18. gxf5 {[%clk
0:02:07.3]} 18... gxf5 {[%clk 0:01:45.3]} 19. Bxf6 {[%clk 0:01:59.2]} 19... Rxf6
{[%clk 0:01:44.7]} 20. Ne5 {[%clk 0:01:59.6]} 20... Qe8 {[%clk 0:01:41]} 21.
Qg5+ {[%clk 0:01:57.5]} 1-0

[Event "*** Titled Tuesday Blitz"]
[Site "Chess.com"]
[Date "2021.03.09"]
[Round "1"]
[White "krzyzan94"]
[Black "Er_is_geen_hoop_meer"]
[Result "1-0"]
[WhiteElo "2727"]
[BlackElo "2396"]
[TimeControl "180+1"]
[EndTime "10:03:32 PST"]
[Termination "krzyzan94 won by resignation"]

1. c4 {[%clk 0:02:55.1]} 1... Nf6 {[%clk 0:02:57.2]} 2. g3 {[%clk 0:02:55.4]}
2... e6 {[%clk 0:02:56.9]} 3. Bg2 {[%clk 0:02:55.8]} 3... d5 {[%clk 0:02:57.3]}
4. Nf3 {[%clk 0:02:55.3]} 4... Be7 {[%clk 0:02:57.2]} 5. O-O {[%clk 0:02:55.1]}
5... O-O {[%clk 0:02:57.6]} 6. d4 {[%clk 0:02:55.5]} 6... dxc4 {[%clk
0:02:55.3]} 7. Qc2 {[%clk 0:02:50.3]} 7... a6 {[%clk 0:02:55.1]} 8. Qxc4 {[%clk
0:02:50.3]} 8... b5 {[%clk 0:02:54.7]} 9. Qc2 {[%clk 0:02:50.6]} 9... Bb7 {[%clk
0:02:55]} 10. Nc3 {[%clk 0:02:47.3]} 10... Nc6 {[%clk 0:02:51.3]} 11. Rd1 {[%clk
0:02:44.5]} 11... Nb4 {[%clk 0:02:47.5]} 12. Qd2 {[%clk 0:02:40.6]} 12... c5
{[%clk 0:02:40.6]} 13. a3 {[%clk 0:02:36.5]} 13... Nbd5 {[%clk 0:02:23.9]} 14.
Nxd5 {[%clk 0:02:33.8]} 14... Bxd5 {[%clk 0:02:21.7]} 15. Qf4 {[%clk 0:02:27.8]}
15... cxd4 {[%clk 0:02:18.7]} 16. Nxd4 {[%clk 0:02:26.1]} 16... Bxg2 {[%clk
0:01:59.9]} 17. Kxg2 {[%clk 0:02:27]} 17... Qb6 {[%clk 0:01:45.5]} 18. Qf3
{[%clk 0:02:23.8]} 18... Rfd8 {[%clk 0:01:42.7]} 19. Be3 {[%clk 0:02:23.6]}
19... Bc5 {[%clk 0:01:41.3]} 20. Nc6 {[%clk 0:02:21.3]} 20... Rd5 {[%clk
0:01:24.9]} 21. Ne7+ {[%clk 0:02:15.9]} 1-0

[Event "*** Titled Tuesday Blitz"]
[Site "Chess.com"]
[Date "2021.03.09"]
[Round "1"]
[White "anon481216"]
[Black "ailime26"]
[Result "1-0"]
[WhiteElo "2506"]
[BlackElo "2099"]
[TimeControl "180+1"]
[EndTime "10:03:40 PST"]
[Termination "anon481216 won by resignation"]

1. d4 {[%clk 0:03:00.9]} 1... d5 {[%clk 0:02:56.3]} 2. c4 {[%clk 0:03:00.3]}
2... e6 {[%clk 0:02:52.7]} 3. Nf3 {[%clk 0:02:59.7]} 3... Nf6 {[%clk 0:02:51.5]}
4. g3 {[%clk 0:02:59.2]} 4... Be7 {[%clk 0:02:48]} 5. Bg2 {[%clk 0:02:58.5]}
5... O-O {[%clk 0:02:48.2]} 6. O-O {[%clk 0:02:57.8]} 6... b6 {[%clk 0:02:48.7]}
7. cxd5 {[%clk 0:02:49.7]} 7... Nxd5 {[%clk 0:02:46.1]} 8. e4 {[%clk 0:02:48.8]}
8... Nf6 {[%clk 0:02:46]} 9. Nc3 {[%clk 0:02:47.9]} 9... Bb7 {[%clk 0:02:46]}
10. Re1 {[%clk 0:02:47.2]} 10... Nbd7 {[%clk 0:02:45.4]} 11. Bf4 {[%clk
0:02:38.4]} 11... c5 {[%clk 0:02:43.7]} 12. d5 {[%clk 0:02:38.1]} 12... exd5
{[%clk 0:02:38]} 13. exd5 {[%clk 0:02:37.8]} 13... Re8 {[%clk 0:02:38.1]} 14.
Qd2 {[%clk 0:02:27.2]} 14... Nf8 {[%clk 0:02:27.1]} 15. d6 {[%clk 0:02:22]}
15... Bxd6 {[%clk 0:01:44.6]} 16. Qxd6 {[%clk 0:02:21.2]} 16... Qc8 {[%clk
0:01:38.3]} 17. Rxe8 {[%clk 0:02:18.7]} 17... Qxe8 {[%clk 0:01:36.7]} 18. Re1
{[%clk 0:02:18.7]} 18... Ne6 {[%clk 0:01:36.2]} 19. Ng5 {[%clk 0:02:07.7]} 19...
Rd8 {[%clk 0:01:34.5]} 20. Qe5 {[%clk 0:02:02.9]} 20... Bxg2 {[%clk 0:01:34.1]}
21. Nxe6 {[%clk 0:01:57.9]} 21... Qc6 {[%clk 0:01:27.3]} 22. Nxd8 {[%clk
0:01:56.1]} 1-0

[Event "*** Titled Tuesday Blitz"]
[Site "Chess.com"]
[Date "2021.03.09"]
[Round "1"]
[White "mr65"]
[Black "szachuspl"]
[Result "0-1"]
[WhiteElo "2077"]
[BlackElo "2503"]
[TimeControl "180+1"]
[EndTime "10:03:50 PST"]
[Termination "szachuspl won by resignation"]

1. e4 {[%clk 0:03:00.5]} 1... c5 {[%clk 0:02:58.8]} 2. Nf3 {[%clk 0:02:58.3]}
2... e6 {[%clk 0:02:58.5]} 3. d4 {[%clk 0:02:58.2]} 3... cxd4 {[%clk 0:02:57.8]}
4. Nxd4 {[%clk 0:02:58.1]} 4... Nf6 {[%clk 0:02:55.3]} 5. Nc3 {[%clk 0:02:58]}
5... Nc6 {[%clk 0:02:54.9]} 6. Ndb5 {[%clk 0:02:52.8]} 6... Bb4 {[%clk
0:02:53.8]} 7. Bf4 {[%clk 0:02:47.4]} 7... O-O {[%clk 0:02:17.3]} 8. a3 {[%clk
0:02:47]} 8... Bxc3+ {[%clk 0:02:15.2]} 9. Nxc3 {[%clk 0:02:45.2]} 9... d5
{[%clk 0:02:15.3]} 10. exd5 {[%clk 0:02:38.1]} 10... exd5 {[%clk 0:02:14.1]} 11.
Bd3 {[%clk 0:02:37.2]} 11... Re8+ {[%clk 0:02:13.1]} 12. Ne2 {[%clk 0:02:36.9]}
12... Ne4 {[%clk 0:02:07.4]} 13. O-O {[%clk 0:02:26.9]} 13... Qf6 {[%clk
0:02:05]} 14. Bc1 {[%clk 0:02:13.2]} 14... Nc5 {[%clk 0:01:47.6]} 15. c3 {[%clk
0:02:02.7]} 15... Nxd3 {[%clk 0:01:44.2]} 16. Qxd3 {[%clk 0:02:01.4]} 16... Bf5
{[%clk 0:01:44.7]} 17. Qf3 {[%clk 0:01:37.8]} 17... Ne5 {[%clk 0:01:41.6]} 18.
Qh5 {[%clk 0:01:36.6]} 18... Bg4 {[%clk 0:01:37.4]} 0-1

[Event "*** Titled Tuesday Blitz"]
[Site "Chess.com"]
[Date "2021.03.09"]
[Round "1"]
[White "NaciSAN"]
[Black "Artem_Sadovsky"]
[Result "0-1"]
[WhiteElo "2275"]
[BlackElo "2577"]
[TimeControl "180+1"]
[EndTime "10:04:07 PST"]
[Termination "Artem_Sadovsky won by resignation"]

1. e4 {[%clk 0:02:59.8]} 1... c6 {[%clk 0:02:59.5]} 2. d4 {[%clk 0:02:58.1]}
2... d5 {[%clk 0:02:58]} 3. Nc3 {[%clk 0:02:58.6]} 3... dxe4 {[%clk 0:02:55.7]}
4. Nxe4 {[%clk 0:02:59.5]} 4... Nf6 {[%clk 0:02:55.7]} 5. Nxf6+ {[%clk
0:02:59.2]} 5... exf6 {[%clk 0:02:56.6]} 6. c3 {[%clk 0:02:59.6]} 6... Bd6
{[%clk 0:02:57.2]} 7. Bd3 {[%clk 0:02:59.1]} 7... O-O {[%clk 0:02:58.1]} 8. Qc2
{[%clk 0:02:59.5]} 8... Re8+ {[%clk 0:02:59]} 9. Ne2 {[%clk 0:02:59.7]} 9... h5
{[%clk 0:02:59.9]} 10. O-O {[%clk 0:02:58.8]} 10... h4 {[%clk 0:03:00.4]} 11.
Bf4 {[%clk 0:02:57.2]} 11... h3 {[%clk 0:02:58.7]} 12. g3 {[%clk 0:02:54.3]}
12... Bg4 {[%clk 0:02:48.4]} 13. Bxd6 {[%clk 0:02:53.8]} 13... Qxd6 {[%clk
0:02:46]} 14. Nf4 {[%clk 0:02:54]} 14... g5 {[%clk 0:02:44]} 15. Bf5 {[%clk
0:02:42.2]} 15... Bxf5 {[%clk 0:02:41.2]} 16. Qxf5 {[%clk 0:02:41.6]} 16... gxf4
{[%clk 0:02:42.1]} 17. Qg4+ {[%clk 0:02:36.2]} 17... Kf8 {[%clk 0:02:35.4]} 18.
Rae1 {[%clk 0:02:32.9]} 18... Re6 {[%clk 0:02:28.7]} 19. Qxh3 {[%clk 0:02:29.1]}
19... Ke7 {[%clk 0:02:24.7]} 20. Qh8 {[%clk 0:02:27.8]} 20... f3 {[%clk
0:01:59]} 21. h4 {[%clk 0:02:12.5]} 21... a5 {[%clk 0:01:46.6]} 22. h5 {[%clk
0:02:12]} 22... Qd5 {[%clk 0:01:35.2]} 23. h6 {[%clk 0:02:02]} 23... Nd7 {[%clk
0:01:32.2]} 24. Qxa8 {[%clk 0:01:59]} 24... Qh5 {[%clk 0:01:32.5]} 25. Rxe6+
{[%clk 0:01:52.6]} 25... fxe6 {[%clk 0:01:33.4]} 26. Qxb7 {[%clk 0:01:51.1]}
26... Qh3 {[%clk 0:01:31.9]} 0-1

[Event "*** Titled Tuesday Blitz"]
[Site "Chess.com"]
[Date "2021.03.09"]
[Round "1"]
[White "gisela_roque"]
[Black "draksbg"]
[Result "0-1"]
[WhiteElo "1756"]
[BlackElo "2487"]
[TimeControl "180+1"]
[EndTime "10:04:17 PST"]
[Termination "draksbg won by resignation"]

1. c4 {[%clk 0:02:59.6]} 1... c5 {[%clk 0:02:58.9]} 2. Nc3 {[%clk 0:02:58.4]}
2... g6 {[%clk 0:02:58.7]} 3. Nf3 {[%clk 0:02:57.8]} 3... Nc6 {[%clk 0:02:56.8]}
4. g3 {[%clk 0:02:58.1]} 4... Bg7 {[%clk 0:02:56]} 5. Bg2 {[%clk 0:02:58.3]}
5... d6 {[%clk 0:02:54.5]} 6. a3 {[%clk 0:02:57.1]} 6... Nh6 {[%clk 0:02:49]} 7.
O-O {[%clk 0:02:55.6]} 7... Nf5 {[%clk 0:02:48]} 8. Rb1 {[%clk 0:02:53.1]} 8...
O-O {[%clk 0:02:42.5]} 9. b4 {[%clk 0:02:18.6]} 9... Qd7 {[%clk 0:02:35.5]} 10.
bxc5 {[%clk 0:01:58.6]} 10... dxc5 {[%clk 0:02:35.5]} 11. Ne4 {[%clk 0:01:58.3]}
11... b6 {[%clk 0:02:35]} 12. d3 {[%clk 0:01:54.8]} 12... Bb7 {[%clk 0:02:31.2]}
13. Bb2 {[%clk 0:01:51.7]} 13... Ncd4 {[%clk 0:02:31.3]} 14. Nxd4 {[%clk
0:01:48.3]} 14... Nxd4 {[%clk 0:02:28.6]} 15. e3 {[%clk 0:01:44.2]} 15... Nc6
{[%clk 0:02:25.9]} 16. Bxg7 {[%clk 0:01:43.7]} 16... Kxg7 {[%clk 0:02:26.8]} 17.
Qc2 {[%clk 0:01:34.2]} 17... Ne5 {[%clk 0:02:25.6]} 18. Rfd1 {[%clk 0:01:27.4]}
18... Bc6 {[%clk 0:02:21.4]} 19. Qc3 {[%clk 0:01:23]} 19... f6 {[%clk
0:02:20.5]} 20. d4 {[%clk 0:01:16.3]} 20... cxd4 {[%clk 0:02:10.7]} 21. exd4
{[%clk 0:01:14.8]} 21... Nf7 {[%clk 0:02:09.6]} 22. d5 {[%clk 0:01:02.5]} 22...
Ba4 {[%clk 0:02:04.6]} 23. Re1 {[%clk 0:00:57.7]} 23... Rfe8 {[%clk 0:02:04.1]}
24. Ng5 {[%clk 0:00:54.4]} 24... Nxg5 {[%clk 0:02:03.5]} 0-1

[Event "*** Titled Tuesday Blitz"]
[Site "Chess.com"]
[Date "2021.03.09"]
[Round "1"]
[White "cukin84"]
[Black "Chigorinetz"]
[Result "0-1"]
[WhiteElo "2113"]
[BlackElo "2510"]
[TimeControl "180+1"]
[EndTime "10:04:19 PST"]
[Termination "Chigorinetz won by resignation"]

1. e4 {[%clk 0:02:59.9]} 1... c5 {[%clk 0:02:57.9]} 2. Nc3 {[%clk 0:02:58.9]}
2... g6 {[%clk 0:02:57]} 3. f4 {[%clk 0:02:58.3]} 3... Bg7 {[%clk 0:02:56.7]} 4.
Nf3 {[%clk 0:02:58.3]} 4... e6 {[%clk 0:02:57]} 5. g3 {[%clk 0:02:57.5]} 5...
Ne7 {[%clk 0:02:56.6]} 6. Bg2 {[%clk 0:02:57.5]} 6... O-O {[%clk 0:02:56.7]} 7.
O-O {[%clk 0:02:57]} 7... Nbc6 {[%clk 0:02:56.8]} 8. d3 {[%clk 0:02:56.7]} 8...
d5 {[%clk 0:02:53.5]} 9. e5 {[%clk 0:02:56.7]} 9... Rb8 {[%clk 0:02:52.9]} 10.
a4 {[%clk 0:02:55.7]} 10... a6 {[%clk 0:02:52.7]} 11. Qe1 {[%clk 0:02:51.5]}
11... b5 {[%clk 0:02:51.9]} 12. axb5 {[%clk 0:02:50.8]} 12... axb5 {[%clk
0:02:51.8]} 13. b3 {[%clk 0:02:50.9]} 13... Bd7 {[%clk 0:02:46.1]} 14. h3 {[%clk
0:02:46.4]} 14... Qb6 {[%clk 0:02:43.6]} 15. Kh2 {[%clk 0:02:45.6]} 15... Ra8
{[%clk 0:02:43.2]} 16. Rxa8 {[%clk 0:02:41.9]} 16... Rxa8 {[%clk 0:02:42.4]} 17.
g4 {[%clk 0:02:42.1]} 17... Ra1 {[%clk 0:02:36.5]} 18. Qh4 {[%clk 0:02:39.4]}
18... Qd8 {[%clk 0:02:29.4]} 19. Nxb5 {[%clk 0:02:36.5]} 19... Nc8 {[%clk
0:02:14]} 20. Qg3 {[%clk 0:02:15.7]} 20... d4 {[%clk 0:02:08.8]} 21. Na3 {[%clk
0:02:09.7]} 21... Nb4 {[%clk 0:02:06]} 22. Ng5 {[%clk 0:02:01.3]} 22... Nb6
{[%clk 0:02:02.8]} 23. Ne4 {[%clk 0:01:58.8]} 23... Qc7 {[%clk 0:01:57.6]} 24.
Bb2 {[%clk 0:01:48.3]} 24... Rxf1 {[%clk 0:01:53.2]} 25. Bxf1 {[%clk 0:01:49.2]}
25... N6d5 {[%clk 0:01:53]} 26. Nc4 {[%clk 0:01:45.5]} 26... Nxc2 {[%clk
0:01:50.8]} 27. Ned6 {[%clk 0:01:33.3]} 27... Nce3 {[%clk 0:01:46.2]} 28. Nxe3
{[%clk 0:01:31.1]} 28... Nxe3 {[%clk 0:01:45.3]} 29. Bg2 {[%clk 0:01:30.4]}
29... Bc6 {[%clk 0:01:41.9]} 30. Be4 {[%clk 0:01:27.5]} 30... Bxe4 {[%clk
0:01:40.7]} 31. Nxe4 {[%clk 0:01:27]} 31... Nf1+ {[%clk 0:01:40.4]} 0-1

[Event "*** Titled Tuesday Blitz"]
[Site "Chess.com"]
[Date "2021.03.09"]
[Round "1"]
[White "chessprincesa1"]
[Black "FloMaster111"]
[Result "1-0"]
[WhiteElo "2253"]
[BlackElo "2530"]
[TimeControl "180+1"]
[EndTime "10:04:26 PST"]
[Termination "chessprincesa1 won on time"]

1. d4 {[%clk 0:02:59.3]} 1... Nf6 {[%clk 0:02:58.4]} 2. c4 {[%clk 0:02:57.9]}
2... c5 {[%clk 0:02:57.5]} 3. d5 {[%clk 0:02:57.2]} 3... b5 {[%clk 0:02:58]} 4.
cxb5 {[%clk 0:02:57]} 4... a6 {[%clk 0:02:57.1]} 5. bxa6 {[%clk 0:02:57.9]} 5...
Bxa6 {[%clk 0:02:53.8]} 6. Nc3 {[%clk 0:02:57.6]} 6... g6 {[%clk 0:02:53]} 7. e4
{[%clk 0:02:57.5]} 7... Bxf1 {[%clk 0:02:53.9]} 8. Kxf1 {[%clk 0:02:57.8]} 8...
d6 {[%clk 0:02:54.5]} 9. g3 {[%clk 0:02:58]} 9... Bg7 {[%clk 0:02:55.2]} 10. Kg2
{[%clk 0:02:55.1]} 10... O-O {[%clk 0:02:55.5]} 11. Nf3 {[%clk 0:02:53.6]} 11...
Nbd7 {[%clk 0:02:51.9]} 12. a4 {[%clk 0:02:53.2]} 12... Ng4 {[%clk 0:02:28.2]}
13. Re1 {[%clk 0:02:49.5]} 13... Nge5 {[%clk 0:00:21.4]} 14. Nxe5 {[%clk
0:02:46.6]} 14... Nxe5 {[%clk 0:00:22.3]} 15. f4 {[%clk 0:02:45.9]} 15... Nd7
{[%clk 0:00:22.3]} 16. Ra3 {[%clk 0:02:39.6]} 16... Qa5 {[%clk 0:00:22.1]} 17.
Bd2 {[%clk 0:02:36.5]} 17... Rfb8 {[%clk 0:00:20]} 18. Nb5 {[%clk 0:02:30.7]}
18... Qd8 {[%clk 0:00:05.7]} 19. b3 {[%clk 0:02:29.5]} 1-0